bitfinex-derivatives/quotes_ETHF0:USTF0_20260121
["timestamp","ask_amount","ask_price","bid_price","bid_amount"]
[1768991133960,0.16873,2966.3,2965.5,0.00505825]
[1768991134159,0.34837996,2966.2,2965.5,0.00505825]
[1768991134356,0.16873,2966.3,2965.5,0.00505825]
[1768991134658,0.34836721,2966.2,2965.5,0.00505825]
[1768991134959,0.34837383,2966.1,2965.5,0.00505825]
[1768991135159,1.28170725,2966.3,2965.5,0.00505825]
[1768991135359,1.23337706,2966.2,2965.5,0.00505825]
[1768991135560,0.34836618,2966.1,2965.5,0.00505825]
[1768991135762,1.28170725,2966.3,2965.5,0.00505825]
[1768991136062,1.23315669,2966.2,2965.5,0.00505825]
[1768991136263,0.34830386,2966.1,2965.5,0.00505825]
[1768991136464,1.28170725,2966.3,2965.5,0.00505825]
[1768991136666,1.23300259,2966.2,2965.5,0.00505825]
[1768991136861,0.34826035,2966.1,2965.5,0.00505825]
[1768991137062,1.28170725,2966.3,2965.5,0.00505825]
[1768991137258,1.23301704,2966.2,2965.5,0.00505825]
[1768991137471,0.00270993,2966.6,2965.9,1.11297725]
[1768991137666,0.16873,2966.3,2965.9,2.09944916]
[1768991138462,0.16873,2966.3,2965.9,0.98647191]
[1768991138665,0.16873,2966.3,2965.7,1.11297725]
[1768991140961,0.16873,2966.3,2965.5,2.10450741]
[1768991141166,0.16873,2966.3,2965.6,0.98647191]
[1768991147071,0.16873,2966.3,2965.5,1.1180355]
[1768991147275,0.16873,2966.3,2965.5,0.00505825]
[1768991147773,0.16874,2966.2,2965.5,0.00505825]
[1768991149378,0.34559009,2966.1,2965.5,0.00505825]
[1768991149576,0.16874,2966.2,2965.5,0.00505825]
[1768991149876,0.34559009,2966.1,2965.5,0.00505825]
[1768991150080,0.16874,2966.2,2965.5,0.00505825]
[1768991150271,0.34559014,2966.1,2965.5,0.00505825]
[1768991150473,0.16874,2966.2,2965.5,0.00505825]
[1768991150773,0.34558485,2966.1,2965.5,0.00505825]
[1768991150971,0.16874,2966.2,2965.5,0.00505825]
[1768991151271,0.34559235,2966.1,2965.5,0.00505825]
[1768991151472,0.16874,2966.2,2965.5,0.00505825]
[1768991151779,0.34558885,2966.1,2965.5,0.00505825]
[1768991151971,0.16874,2966.2,2965.5,0.00505825]
[1768991152171,0.34558798,2966.1,2965.5,0.00505825]
[1768991152375,0.16874,2966.2,2965.5,0.00505825]
[1768991152677,0.34558628,2966.1,2965.5,0.00505825]
[1768991152874,0.16874,2966.2,2965.5,0.00505825]
[1768991153072,0.34558549,2966.1,2965.5,0.00505825]
[1768991153277,0.16874,2966.2,2965.5,0.00505825]
[1768991153474,0.34558534,2966.1,2965.5,0.00505825]
[1768991153675,0.16874,2966.2,2965.5,0.00505825]
[1768991153971,0.51433534,2966.1,2965.5,0.00505825]
[1768991154169,0.16875,2966.1,2965.5,0.00505825]
[1768991169194,0.13235,2966.1,2965.5,0.00505825]
[1768991181203,0.00270993,2966.6,2965.9,1.11297725]
[1768991181502,0.16875,2966.1,2965.9,1.11297725]
[1768991181803,0.00270993,2966.6,2965.9,1.11297725]
[1768991182002,1.23149485,2966.5,2965.9,1.11297725]
[1768991182304,1.23149485,2966.4,2965.9,1.11297725]
[1768991182501,0.34596211,2966.3,2965.9,1.11297725]
[1768991182802,0.17142993,2966.6,2965.7,1.70476186]
[1768991183003,1.23122286,2966.5,2965.7,0.59178461]
[1768991183202,1.23122286,2966.4,2965.7,0.59178461]
[1768991183407,0.34592136,2966.3,2965.7,0.59178461]
[1768991183707,0.17142993,2966.6,2965.7,0.59178461]
[1768991184004,1.23105806,2966.5,2965.7,0.59178461]
[1768991184202,1.23105806,2966.4,2965.7,0.59178461]
[1768991184404,0.34588431,2966.3,2965.7,0.59178461]
[1768991184602,0.17142993,2966.6,2965.7,0.59178461]
[1768991184798,1.23093825,2966.5,2965.7,0.59178461]
[1768991184999,1.23093825,2966.4,2965.7,0.59178461]
[1768991185296,0.34585609,2966.3,2965.7,0.59178461]
[1768991185496,0.17142993,2966.6,2965.7,0.59178461]
[1768991185703,1.23084722,2966.5,2965.7,0.59178461]
[1768991186004,1.23084722,2966.4,2965.7,0.59178461]
[1768991186203,0.34583385,2966.3,2965.7,0.59178461]
[1768991186404,0.17142993,2966.6,2965.7,0.59178461]
[1768991186604,1.23077527,2966.5,2965.7,0.59178461]
[1768991186804,1.23077527,2966.4,2965.7,0.59178461]
[1768991187005,0.34581636,2966.3,2965.7,0.59178461]
[1768991187206,0.17142993,2966.6,2965.7,0.59178461]
[1768991187408,1.23073616,2966.5,2965.7,0.59178461]
[1768991187705,1.23073616,2966.4,2965.7,0.59178461]
[1768991187899,0.34581625,2966.3,2965.7,0.59178461]
[1768991188098,0.17142993,2966.6,2965.7,0.59178461]
[1768991188307,1.2306794,2966.5,2965.7,0.59178461]
[1768991188511,1.2306794,2966.4,2965.7,0.59178461]
[1768991188809,0.34579984,2966.3,2965.7,0.59178461]
[1768991189000,0.17142993,2966.6,2965.7,0.59178461]
[1768991189202,1.2306353,2966.5,2965.7,0.59178461]
[1768991189403,0.34578763,2966.4,2965.7,0.59178461]
[1768991189604,0.17142993,2966.6,2965.7,0.59178461]
[1768991189807,1.23061779,2966.5,2965.7,0.59178461]
[1768991190104,0.3457777,2966.4,2965.7,0.59178461]
[1768991190399,0.17142993,2966.6,2965.7,0.59178461]
[1768991190605,1.23059077,2966.5,2965.7,0.59178461]
[1768991190909,0.34577132,2966.4,2965.7,0.59178461]
[1768991191111,0.17142993,2966.6,2965.7,0.59178461]
[1768991191312,1.23047592,2966.5,2965.7,0.59178461]
[1768991191511,0.34574343,2966.4,2965.7,0.59178461]
[1768991191811,0.17142993,2966.6,2965.7,0.59178461]
[1768991192012,1.23047047,2966.5,2965.7,0.59178461]
[1768991192212,0.34573899,2966.4,2965.7,0.59178461]
[1768991192413,0.17142993,2966.6,2965.7,0.59178461]
[1768991192714,1.23045745,2966.5,2965.7,0.59178461]
[1768991192915,0.17142993,2966.6,2965.7,0.59178461]
[1768991192916,0.34573588,2966.4,2965.7,0.59178461]
[1768991193109,0.17142993,2966.6,2965.7,0.59178461]
[1768991193302,1.23044684,2966.5,2965.7,0.59178461]
[1768991193507,0.34573548,2966.4,2965.7,0.59178461]
[1768991193708,0.17142993,2966.6,2965.7,0.59178461]
[1768991194015,1.23042767,2966.5,2965.7,0.59178461]
[1768991194314,0.34572784,2966.4,2965.7,0.59178461]
[1768991194515,0.17142993,2966.6,2965.7,0.59178461]
[1768991194718,1.23041801,2966.5,2965.7,0.59178461]
[1768991194919,0.34572618,2966.4,2965.7,0.59178461]
[1768991195119,0.17142993,2966.6,2965.7,0.59178461]
[1768991195321,1.23033903,2966.5,2965.7,0.59178461]
[1768991195518,0.34572625,2966.4,2965.7,0.59178461]
[1768991195720,0.17142993,2966.6,2965.7,0.59178461]
[1768991196018,1.2303389,2966.5,2965.7,0.59178461]
[1768991196320,0.34572598,2966.4,2965.7,0.59178461]
[1768991196516,0.16872,2966.5,2965.7,0.59178461]
[1768991196722,0.34572708,2966.4,2965.7,0.59178461]
[1768991196920,0.16872,2966.5,2965.7,0.59178461]
[1768991197218,0.34572745,2966.4,2965.7,0.59178461]
[1768991197420,0.16872,2966.5,2965.7,0.59178461]
[1768991197615,0.34573017,2966.4,2965.7,0.59178461]
[1768991197817,0.16872,2966.5,2965.7,0.59178461]
[1768991198017,0.34572985,2966.4,2965.7,0.59178461]
[1768991198219,0.16872,2966.5,2965.7,0.59178461]
[1768991198418,0.34572984,2966.4,2965.7,0.59178461]
[1768991198622,0.16872,2966.5,2965.7,0.59178461]
[1768991198826,0.34575613,2966.4,2965.7,0.59178461]
[1768991199123,0.16872,2966.5,2965.7,0.59178461]
[1768991199322,0.3457515,2966.4,2965.7,0.59178461]
[1768991199521,0.3457515,2966.3,2965.7,0.59178461]
[1768991199820,0.16872,2966.5,2965.7,0.59178461]
[1768991200019,0.34575673,2966.4,2965.7,0.59178461]
[1768991200218,0.34575673,2966.3,2965.7,0.59178461]
[1768991200419,0.16872,2966.5,2965.7,0.59178461]
[1768991200616,1.23053491,2966.4,2965.7,0.59178461]
[1768991200816,0.34578628,2966.3,2965.7,0.59178461]
[1768991201121,0.16872,2966.5,2965.7,0.59178461]
[1768991201321,1.23053477,2966.4,2965.7,0.59178461]
[1768991201524,0.34578094,2966.3,2965.7,0.59178461]
[1768991201717,0.16872,2966.5,2965.7,0.59178461]
[1768991201915,1.23055438,2966.4,2965.7,0.59178461]
[1768991202122,0.3457927,2966.3,2965.7,0.59178461]
[1768991202324,0.16872,2966.5,2965.7,0.59178461]
[1768991202518,1.23058893,2966.4,2965.7,0.59178461]
[1768991202825,0.34580411,2966.3,2965.7,0.59178461]
[1768991203124,0.16872,2966.5,2965.7,0.59178461]
[1768991203316,1.23061642,2966.4,2965.7,0.59178461]
[1768991203513,0.34580372,2966.3,2965.7,0.59178461]
[1768991203716,0.16872,2966.5,2965.7,0.59178461]
[1768991204026,1.23062171,2966.4,2965.7,0.59178461]
[1768991204226,0.34581487,2966.3,2965.7,0.59178461]
[1768991204420,0.16872,2966.5,2965.7,0.59178461]
[1768991204720,1.23067056,2966.4,2965.7,0.59178461]
[1768991205023,0.16872,2966.5,2965.7,0.59178461]
[1768991205024,0.34583035,2966.3,2965.7,0.59178461]
[1768991205323,0.16872,2966.5,2965.7,0.59178461]
[1768991205525,1.23072726,2966.4,2965.7,0.59178461]
[1768991205719,0.34584838,2966.3,2965.7,0.59178461]
[1768991205922,0.16872,2966.5,2965.7,0.59178461]
[1768991206123,1.23072856,2966.4,2965.7,0.59178461]
[1768991206322,0.34584875,2966.3,2965.7,0.59178461]
[1768991206525,0.16872,2966.5,2965.7,0.59178461]
[1768991206725,1.23080409,2966.4,2965.7,0.59178461]
[1768991207024,0.34587255,2966.3,2965.7,0.59178461]
[1768991207321,0.16872,2966.5,2965.7,0.59178461]
[1768991207523,1.23088741,2966.4,2965.7,0.59178461]
[1768991207722,0.34589722,2966.3,2965.7,0.59178461]
[1768991207927,0.16872,2966.5,2965.7,0.59178461]
[1768991208127,1.23088851,2966.4,2965.7,0.59178461]
[1768991208428,0.3458997,2966.3,2965.7,0.59178461]
[1768991208627,0.16872,2966.5,2965.7,0.59178461]
[1768991208826,1.2309861,2966.4,2965.7,0.59178461]
[1768991209031,0.34593219,2966.3,2965.7,0.59178461]
[1768991209224,0.16872,2966.5,2965.7,0.59178461]
[1768991209527,1.23107434,2966.4,2965.7,0.59178461]
[1768991209727,0.3459327,2966.3,2965.7,0.59178461]
[1768991210029,0.16872,2966.5,2965.7,0.59178461]
[1768991210233,1.23124356,2966.4,2965.7,0.59178461]
[1768991210534,0.34597916,2966.3,2965.7,0.59178461]
[1768991210830,0.16872,2966.5,2965.7,0.59178461]
[1768991211031,1.2313559,2966.4,2965.7,0.59178461]
[1768991211233,0.34609151,2966.3,2965.7,0.59178461]
[1768991211425,0.16872,2966.5,2965.7,0.59178461]
[1768991211631,1.23163923,2966.4,2965.7,0.59178461]
[1768991211926,0.34609186,2966.3,2965.7,0.59178461]
[1768991212128,0.16872,2966.5,2965.7,0.59178461]
[1768991212333,1.23164102,2966.4,2965.7,0.59178461]
[1768991212629,0.34609226,2966.3,2965.7,0.59178461]
[1768991212828,0.16872,2966.5,2965.7,0.59178461]
[1768991213029,1.23181191,2966.4,2965.7,0.59178461]
[1768991213232,0.34614039,2966.3,2965.7,0.59178461]
[1768991213530,0.16872,2966.5,2965.7,0.59178461]
[1768991213730,1.23181207,2966.4,2965.7,0.59178461]
[1768991213930,0.34614046,2966.3,2965.7,0.59178461]
[1768991214130,0.16872,2966.5,2965.7,0.59178461]
[1768991214331,1.23208831,2966.4,2965.7,0.59178461]
[1768991214532,0.34621797,2966.3,2965.7,0.59178461]
[1768991214835,0.16872,2966.5,2965.7,0.59178461]
[1768991215027,1.23214072,2966.4,2965.7,0.59178461]
[1768991215226,0.34623276,2966.3,2965.7,0.59178461]
[1768991215426,0.16872,2966.5,2965.7,0.59178461]
[1768991215627,1.2321326,2966.4,2965.7,0.59178461]
[1768991215924,0.34623047,2966.3,2965.7,0.59178461]
[1768991216127,0.16872,2966.5,2965.7,0.59178461]
[1768991216334,1.23213779,2966.4,2965.7,0.59178461]
[1768991216634,0.34623198,2966.3,2965.7,0.59178461]
[1768991216839,0.16872,2966.5,2965.7,0.59178461]
[1768991217034,1.23213631,2966.4,2965.7,0.59178461]
[1768991217233,0.34623151,2966.3,2965.7,0.59178461]
[1768991217433,0.16872,2966.5,2965.7,0.59178461]
[1768991217631,1.2321369,2966.4,2965.7,0.59178461]
[1768991217832,0.34623189,2966.3,2965.7,0.59178461]
[1768991218132,0.16872,2966.5,2965.7,0.59178461]
[1768991218332,1.2321352,2966.4,2965.7,0.59178461]
[1768991218532,0.34623157,2966.3,2965.7,0.59178461]
[1768991218733,0.16872,2966.5,2965.7,0.59178461]
[1768991218933,1.23213752,2966.4,2965.7,0.59178461]
[1768991219228,0.34623206,2966.3,2965.7,0.59178461]
[1768991219434,0.16872,2966.5,2965.7,0.59178461]
[1768991219636,1.23214044,2966.4,2965.7,0.59178461]
[1768991219937,1.40085388,2966.3,2965.5,0.00505825]
[1768991220236,1.23209438,2966.2,2965.5,0.00505825]
[1768991220429,0.34623288,2966.1,2965.5,0.00505825]
[1768991220626,0.16873,2966.3,2965.5,0.00505825]
[1768991220834,1.23211129,2966.2,2965.5,0.00505825]
[1768991221032,0.34622478,2966.1,2965.5,0.00505825]
[1768991221234,0.16874,2966.2,2965.5,0.00505825]
[1768991221438,0.34613527,2966.1,2965.5,0.00505825]
[1768991221639,0.16874,2966.2,2965.5,0.00505825]
[1768991221939,0.34613424,2966.1,2965.5,0.00505825]
[1768991222237,0.16874,2966.2,2965.5,0.00505825]
[1768991222431,0.34609695,2966.1,2965.5,0.00505825]
[1768991222630,0.16874,2966.2,2965.5,0.00505825]
[1768991222929,0.34609172,2966.1,2965.5,0.00505825]
[1768991223130,0.16874,2966.2,2965.5,0.00505825]
[1768991223330,0.34606127,2966.1,2965.5,0.00505825]
[1768991223531,0.16874,2966.2,2965.5,0.00505825]
[1768991223731,0.34605896,2966.1,2965.5,0.00505825]
[1768991223934,0.16874,2966.2,2965.5,0.00505825]
[1768991224135,0.34605857,2966.1,2965.5,0.00505825]
[1768991224331,0.16874,2966.2,2965.5,0.00505825]
[1768991224528,0.34603428,2966.1,2965.5,0.00505825]
[1768991224738,0.16874,2966.2,2965.5,0.00505825]
[1768991224941,0.34603396,2966.1,2965.5,0.00505825]
[1768991225233,0.16874,2966.2,2965.5,0.00505825]
[1768991225427,0.34601656,2966.1,2965.5,0.00505825]
[1768991225630,0.16874,2966.2,2965.5,0.00505825]
[1768991225832,0.34601393,2966.1,2965.5,0.00505825]
[1768991226126,0.16874,2966.2,2965.5,0.00505825]
[1768991228739,0.16874,2966.2,2965.5,0.40870947]
[1768991239039,0.16875,2966.1,2965.5,0.40870947]
[1768991242449,0.00270993,2966.6,2965.5,0.00505825]
[1768991242657,0.16875,2966.0,2965.3,0.34668354]
[1768991242945,0.34605765,2965.9,2965.3,0.34668354]
[1768991243159,0.16875,2966.0,2965.3,0.34668354]
[1768991243354,0.34595672,2965.9,2965.3,0.34668354]
[1768991243538,0.16875,2966.0,2965.3,0.34668354]
[1768991243744,0.34596308,2965.9,2965.3,0.35174179]
[1768991243941,0.16875,2966.0,2965.3,0.35174179]
[1768991244249,0.34596287,2965.9,2965.3,0.35174179]
[1768991244550,0.00505825,2965.9,2965.3,0.35174179]
[1768991252051,0.17381825,2965.9,2965.3,0.35174179]
[1768991252255,0.16876,2965.8,2965.3,0.35174179]
[1768991254152,0.16877,2965.7,2965.3,0.00874824]
[1768991254353,0.16877,2965.7,2964.9,0.34299355]
[1768991255351,0.16877,2965.7,2964.9,0.34684248]
[1768991255559,0.16877,2965.7,2965.0,0.3480518]
[1768991283898,0.16877,2965.6,2965.0,0.3480518]
[1768991285190,0.16878,2965.5,2965.0,0.3480518]
[1768991288399,1.40260622,2965.4,2964.9,0.00384893]
[1768991288594,0.51501183,2965.3,2964.3,1.11329803]
[1768991288797,0.16879,2965.3,2964.3,1.11329803]
[1768991289598,0.16879,2965.3,2964.5,0.00505825]
[1768991290099,0.1688,2965.2,2964.5,0.00505825]
[1768991295704,0.1688,2965.1,2964.5,0.00505825]
[1768991296203,0.1688,2965.1,2964.5,0.25187915]
[1768991298905,0.1688,2965.1,2964.5,1.36517718]
[1768991302607,0.1688,2965.1,2964.6,0.2468209]
[1768991309006,1.81514635,2965.9,2964.6,0.2468209]
[1768991309208,0.88648384,2965.8,2964.6,0.2468209]
[1768991309412,1.23226714,2965.7,2964.6,0.2468209]
[1768991309708,1.23226714,2965.6,2964.6,0.2468209]
[1768991309907,1.23226714,2965.5,2964.6,0.2468209]
[1768991310107,0.16879,2965.3,2964.6,0.2468209]
[1768991313208,1.81514635,2965.9,2964.6,0.2468209]
[1768991313415,1.232991,2965.8,2964.6,0.2468209]
[1768991313714,1.232991,2965.7,2964.6,0.2468209]
[1768991313914,1.232991,2965.6,2964.6,0.2468209]
[1768991314119,0.34591708,2965.5,2964.6,0.2468209]
[1768991314316,0.00505825,2965.9,2964.6,0.2468209]
[1768991314612,0.16879,2965.3,2964.6,0.2468209]
[1768991331822,0.00505825,2965.9,2964.6,0.2468209]
[1768991332022,1.2342962,2965.8,2964.6,0.2468209]
[1768991332223,1.2342962,2965.7,2964.6,0.2468209]
[1768991332411,1.2342962,2965.6,2964.6,0.2468209]
[1768991332615,0.16879,2965.3,2964.6,0.2468209]
[1768991343236,0.00505825,2965.9,2964.8,0.21186866]
[1768991343445,0.34519542,2965.8,2964.8,0.21186866]
[1768991343640,1.8100881,2966.4,2964.8,0.21186866]
[1768991343843,0.34521746,2966.3,2964.8,0.21186866]
[1768991344141,1.8100881,2966.4,2964.8,0.21186866]
[1768991344142,1.23428704,2966.2,2964.8,0.21186866]
[1768991344337,0.16876,2965.9,2964.8,0.21186866]
[1768991344542,0.16872,2966.5,2965.6,0.21186866]
[1768991346140,0.00505825,2966.3,2965.6,0.21186866]
[1768991346343,0.16872,2966.5,2965.6,0.21186866]
[1768991356345,0.00505825,2966.3,2965.6,0.21186866]
[1768991368868,0.00505825,2966.3,2965.8,0.18892244]
[1768991400797,0.16875,2966.1,2965.2,3.03698564]
[1768991400997,0.16875,2966.0,2964.9,4.14982849]
[1768991401186,0.16875,2966.0,2964.9,1.11284285]
[1768991401582,0.16876,2965.8,2964.7,4.14982849]
[1768991401796,0.16877,2965.7,2964.6,2.495]
[1768991401992,1.11284285,2965.7,2964.5,0.00505825]
[1768991402294,1.11284285,2966.2,2964.7,1.11284285]
[1768991402497,1.22300754,2966.1,2964.7,1.11284285]
[1768991402682,1.22300754,2966.0,2964.7,1.11284285]
[1768991402889,0.16877,2965.7,2964.8,0.16902111]
[1768991403091,0.00505825,2966.3,2965.5,1.11284285]
[1768991403390,0.00505825,2966.3,2965.5,1.28186396]
[1768991403591,0.00505825,2966.3,2965.7,1.28186396]
[1768991403786,0.00505825,2966.3,2965.7,0.16902111]
[1768991404591,0.17378825,2966.3,2965.3,1.28186396]
[1768991404799,0.16874,2966.2,2965.1,1.11284285]
[1768991405298,0.16874,2966.2,2965.5,0.16902111]
[1768991411505,0.00270993,2966.6,2965.9,1.11284285]
[1768991411705,0.34153547,2966.5,2965.9,1.11284285]
[1768991411895,0.00270993,2966.6,2965.9,1.11284285]
[1768991420925,0.00270993,2966.6,2966.1,1.11284285]
[1768991421413,0.00270993,2966.6,2966.1,1.1179011]
[1768991423221,0.00270993,2966.6,2966.1,0.00505825]
[1768991429819,0.16871,2966.7,2966.1,0.00505825]
[1768991430721,0.17261337,2966.7,2966.1,0.00505825]
[1768991459137,0.32834755,2966.7,2966.1,0.00505825]
[1768991461036,0.00390337,2966.7,2965.5,3.03698564]
[1768991461335,0.15573418,2965.9,2965.0,3.03698564]
[1768991461537,0.15573418,2965.6,2964.8,3.03698564]
[1768991461734,0.15573418,2965.6,2964.5,3.03698564]
[1768991461935,0.15573418,2965.6,2964.4,3.03698564]
[1768991462233,0.00505825,2965.3,2964.7,0.00505825]
[1768991464039,0.16079243,2965.3,2964.7,0.00505825]
[1768991465737,0.16079243,2965.3,2964.3,0.00435007]
[1768991466639,0.15573418,2965.1,2964.3,0.00435007]
[1768991466845,0.15573418,2965.0,2963.7,1.11270779]
[1768991467237,0.15573418,2965.0,2963.7,5.31270779]
[1768991467640,0.15573418,2965.0,2963.7,1.11270779]
[1768991467942,0.32454418,2965.0,2963.7,1.11270779]
[1768991468147,0.15573418,2964.9,2964.1,0.00505825]
[1768991468950,0.32454418,2964.9,2964.1,0.00505825]
[1768991469248,0.15573418,2964.8,2964.1,0.00505825]
[1768991471646,0.15573418,2964.8,2963.7,0.0026549]
[1768991472953,0.15573418,2964.8,2963.7,1.11536269]
[1768991473448,0.15573418,2964.8,2964.0,0.00505825]
[1768991482451,0.32455418,2964.8,2964.0,0.00505825]
[1768991482754,0.16051488,2964.7,2964.0,0.00505825]
[1768991483357,0.32933488,2964.7,2964.0,0.00505825]
[1768991483549,0.16051488,2964.6,2964.0,0.00505825]
[1768991483750,0.16397026,2964.6,2964.0,0.00505825]
[1768991485655,0.16882,2964.7,2964.0,0.00505825]
[1768991486352,0.00505825,2965.3,2964.1,1.11270779]
[1768991486653,0.00315312,2965.3,2964.9,1.11270779]
[1768991486855,0.16877,2965.8,2964.9,1.25892507]
[1768991487759,0.172572,2965.8,2964.9,1.25892507]
[1768991488858,0.172572,2965.8,2965.2,1.11323288]
[1768991490458,0.17763025,2965.8,2965.2,1.11323288]
[1768991490858,0.17763025,2965.8,2965.0,1.11323288]
[1768991495761,0.16874,2966.2,2965.3,1.11323288]
[1768991496659,0.16874,2966.1,2965.3,1.11323288]
[1768991503072,0.00505825,2966.0,2965.3,1.11323288]
[1768991516382,0.3424921,2965.9,2965.3,1.11323288]
[1768991516582,0.00505825,2966.0,2965.3,1.11323288]
[1768991516876,0.34248756,2965.9,2965.3,1.11323288]
[1768991517078,0.00505825,2966.0,2965.3,1.11323288]
[1768991517273,0.34248484,2965.9,2965.3,1.11323288]
[1768991517475,0.00505825,2966.0,2965.3,1.11323288]
[1768991517678,0.34248594,2965.9,2965.3,1.11323288]
[1768991517874,0.00505825,2966.0,2965.3,1.11323288]
[1768991518171,0.34248444,2965.9,2965.3,1.11323288]
[1768991518367,0.00505825,2966.0,2965.3,1.11323288]
[1768991518573,1.8100881,2966.8,2965.6,1.26538479]
[1768991518776,1.03989096,2966.7,2965.6,1.26538479]
[1768991518984,0.87118096,2966.6,2965.6,1.26538479]
[1768991519176,0.87118096,2966.5,2965.6,1.26538479]
[1768991519377,0.16871,2966.7,2965.6,1.26538479]
[1768991519578,0.87072296,2966.6,2965.9,0.00505825]
[1768991519779,0.87072296,2966.5,2965.9,0.00779327]
[1768991519971,0.17200832,2966.7,2965.9,0.00779327]
[1768991520178,0.87071538,2966.6,2965.9,1.12102615]
[1768991520378,1.8100881,2967.3,2966.2,1.26538479]
[1768991520779,0.16869,2967.1,2966.2,1.26538479]
[1768991521082,0.00505825,2967.0,2966.2,1.26538479]
[1768991521478,0.00747491,2967.0,2966.2,1.26538479]
[1768991521885,0.1687,2966.9,2965.9,1.12102615]
[1768991522085,0.16871,2966.7,2965.9,0.00779327]
[1768991522281,1.11323288,2966.9,2965.9,0.00779327]
[1768991522282,0.16872,2966.6,2965.9,0.00779327]
[1768991527886,0.16872,2966.5,2965.9,0.00779327]
[1768991528888,0.16874,2966.2,2965.1,1.11323288]
[1768991529280,0.16874,2966.2,2965.4,1.11323288]
[1768991529790,0.16874,2966.2,2965.4,1.11568958]
[1768991529984,0.16874,2966.2,2965.5,0.00505825]
[1768991534082,0.16874,2966.2,2965.7,1.11323288]
[1768991537296,0.16874,2966.2,2965.5,1.11829113]
[1768991540189,0.16871,2966.7,2966.0,1.11323288]
[1768991540991,0.16871,2966.7,2966.2,1.11323288]
[1768991541191,0.00747491,2967.0,2966.2,1.11323288]
[1768991541497,0.00747491,2967.0,2965.9,1.11323288]
[1768991542598,0.16871,2966.7,2965.9,1.11323288]
[1768991545899,0.00747491,2967.0,2966.0,0.14997281]
[1768991546102,0.00747491,2967.0,2965.6,2.43007589]
[1768991546103,0.14154,2968.1,2966.9,1.11323288]
[1768991546402,1.11323288,2968.2,2966.6,1.26320569]
[1768991546403,0.16865,2967.7,2966.6,1.26320569]
[1768991546603,0.16865,2967.7,2966.9,1.11323288]
[1768991547107,0.00505825,2967.6,2967.0,0.00505825]
[1768991548109,0.17289228,2967.7,2967.0,0.15503106]
[1768991548408,0.17289228,2967.7,2967.2,1.11323288]
[1768991549209,0.17289228,2967.7,2967.0,0.00505825]
[1768991549903,0.31443228,2967.7,2967.0,0.00505825]
[1768991550503,0.31021,2967.5,2967.0,0.00505825]
[1768991550710,0.16867,2967.4,2966.4,1.11323288]
[1768991551006,0.16867,2967.4,2966.2,0.14997281]
[1768991551814,0.16867,2967.4,2966.5,0.00505825]
[1768991555817,0.00424228,2967.7,2966.5,0.15503106]
[1768991556616,0.16867,2967.4,2966.5,0.15503106]
[1768991557512,0.00424228,2967.7,2966.5,0.15503106]
[1768991558617,0.16867,2967.4,2966.5,0.15503106]
[1768991560119,0.00505825,2967.2,2966.5,0.15503106]
[1768991560317,0.16867,2967.4,2966.5,0.15503106]
[1768991561919,0.16867,2967.4,2966.5,0.00505825]
[1768991563615,0.16867,2967.4,2966.5,0.15503106]
[1768991579238,0.32137083,2967.4,2966.5,0.00505825]
[1768991580827,0.16868,2967.3,2966.5,0.00505825]
[1768991581037,0.15270083,2967.2,2966.5,0.00505825]
[1768991584540,0.32138083,2967.2,2966.5,0.00505825]
[1768991600859,0.16868,2967.2,2966.5,0.00505825]
[1768991609967,0.31595677,2967.2,2966.5,0.00505825]
[1768991610367,0.14727677,2967.1,2966.5,0.00505825]
[1768991610762,0.31596677,2967.1,2966.5,0.00505825]
[1768991610968,0.16871,2966.7,2966.1,2.12283413]
[1768991611168,0.16871,2966.7,2965.8,4.24058041]
[1768991611368,0.16871,2966.7,2965.7,1.25879715]
[1768991611971,0.16871,2966.7,2965.9,0.00505825]
[1768991612262,0.00505825,2966.6,2965.9,0.00505825]
[1768991616767,0.17377825,2966.6,2965.9,0.00505825]
[1768991620872,0.17377825,2966.6,2965.9,1.1178811]
[1768991625078,0.17377825,2966.6,2965.9,0.00505825]
[1768991625679,0.16873,2966.4,2965.9,0.00505825]
[1768991625880,0.16873,2966.4,2965.4,0.0024567]
[1768991626881,0.16873,2966.4,2965.6,0.00505825]
[1768991627082,0.00505825,2966.6,2965.6,0.00505825]
[1768991628585,0.16874,2966.2,2965.6,0.00505825]
[1768991638895,0.16874,2966.2,2965.6,0.15381896]
[1768991639596,0.16874,2966.2,2965.7,1.26158356]
[1768991640294,0.00505825,2966.6,2965.8,0.14876071]
[1768991640486,1.23380664,2966.5,2965.8,0.14876071]
[1768991640685,0.16874,2966.2,2965.8,0.14876071]
[1768991641796,0.16874,2966.2,2965.6,0.00505825]
[1768991641797,1.8100881,2967.0,2966.0,1.26158356]
[1768991642094,0.16871,2966.8,2966.0,1.26158356]
[1768991642396,0.16871,2966.7,2966.0,1.26158356]
[1768991649500,0.00505825,2966.6,2966.0,1.26158356]
[1768991655099,0.17377825,2966.6,2966.0,1.26158356]
[1768991657399,1.8100881,2967.2,2966.1,0.14456033]
[1768991657605,0.1687,2967.0,2966.1,0.14456033]
[1768991657798,0.50875204,2966.9,2966.1,0.14456033]
[1768991658099,0.1687,2966.9,2966.1,0.14456033]
[1768991659608,4.79791095,2967.5,2966.1,0.14456033]
[1768991659803,1.23057745,2967.4,2966.1,0.14456033]
[1768991660104,1.23057745,2967.3,2966.1,0.14456033]
[1768991660305,1.23057745,2967.2,2966.1,0.14456033]
[1768991660505,1.23057745,2967.1,2966.1,0.14456033]
[1768991660702,0.1687,2966.8,2966.1,0.14456033]
[1768991661511,0.1687,2966.8,2966.3,0.14456033]
[1768991664917,0.1687,2966.8,2966.3,0.14456033]
[1768991677512,1.8100881,2967.4,2966.3,0.14456033]
[1768991677815,0.1687,2966.9,2966.3,0.14456033]
[1768991678111,1.8100881,2967.4,2966.3,0.14456033]
[1768991678316,0.1687,2966.9,2966.3,0.14456033]
[1768991678718,0.34031672,2966.8,2965.9,0.14456033]
[1768991678908,0.16873,2966.5,2965.6,0.00505825]
[1768991679214,0.00244765,2967.2,2965.6,0.00505825]
[1768991679215,1.81253575,2967.2,2965.6,0.00505825]
[1768991679420,0.16872,2966.5,2965.6,0.14961858]
[1768991683920,0.16873,2966.4,2965.6,0.14961858]
[1768991688327,0.16871,2966.8,2966.1,0.14377889]
[1768991688623,1.8100881,2967.5,2966.1,0.14377889]
[1768991688821,0.1687,2966.9,2966.1,0.14377889]
[1768991701138,0.16871,2966.8,2966.1,0.14377889]
[1768991702948,0.16871,2966.7,2965.7,0.14939758]
[1768991707943,1.8100881,2967.4,2965.7,0.14939758]
[1768991708149,0.16872,2966.6,2965.7,0.14939758]
[1768991711347,0.16873,2966.4,2965.6,0.00505825]
[1768991713048,0.00813762,2967.1,2965.6,0.00505825]
[1768991713241,1.24020893,2967.0,2965.6,0.00505825]
[1768991713442,0.16874,2966.3,2965.6,0.00505825]
[1768991713852,0.16874,2966.2,2965.6,0.00505825]
[1768991716946,0.00787647,2966.5,2965.0,0.13988874]
[1768991717146,0.16877,2965.7,2964.7,0.13988874]